{"text_format":"3","workbook":"xlsx","n_sheets":4,"sheets":["Resumen","Activos","Pasivos","Categorías"],"not_rendered":{"defined_names":10},"read":"whole","date_system":"1900"}

{"sheet":"Resumen","index":0,"n_rows":12,"n_cols":4,"rows_kept":12}
[null,"Balance"]
[null,null,{"$f":"\"AF-\"&YEAR(TODAY())-1","v":"AF-2016"},{"$f":"\"AF-\"&YEAR(TODAY())","v":"AF-2017"}]
[null,"Tipo de activo","Año anterior","Año actual"]
[null,"Activos actuales",{"$f":"SUMIFS(Activos[Año anterior],Activos[Tipo de activo],Panel[[#This Row],[Tipo de activo]])+SUMIFS(Pasivos[Año anterior],Pasivos[Tipo de pasivo],Panel[[#This Row],[Tipo de activo]])","v":600},{"$f":"SUMIFS(Activos[Año actual],Activos[Tipo de activo],Panel[[#This Row],[Tipo de activo]])+SUMIFS(Pasivos[Año actual],Pasivos[Tipo de pasivo],Panel[[#This Row],[Tipo de activo]])","v":600}]
[null,"Activo fijos",{"$f":"SUMIFS(Activos[Año anterior],Activos[Tipo de activo],Panel[[#This Row],[Tipo de activo]])+SUMIFS(Pasivos[Año anterior],Pasivos[Tipo de pasivo],Panel[[#This Row],[Tipo de activo]])","v":{"v":-100,"d":"-100 "}},{"$f":"SUMIFS(Activos[Año actual],Activos[Tipo de activo],Panel[[#This Row],[Tipo de activo]])+SUMIFS(Pasivos[Año actual],Pasivos[Tipo de pasivo],Panel[[#This Row],[Tipo de activo]])","v":{"v":-85,"d":"-85 "}}]
[null,"Otros activos",{"$f":"SUMIFS(Activos[Año anterior],Activos[Tipo de activo],Panel[[#This Row],[Tipo de activo]])+SUMIFS(Pasivos[Año anterior],Pasivos[Tipo de pasivo],Panel[[#This Row],[Tipo de activo]])","v":0},{"$f":"SUMIFS(Activos[Año actual],Activos[Tipo de activo],Panel[[#This Row],[Tipo de activo]])+SUMIFS(Pasivos[Año actual],Pasivos[Tipo de pasivo],Panel[[#This Row],[Tipo de activo]])","v":0}]
[null,"Pasivos actuales",{"$f":"SUMIFS(Activos[Año anterior],Activos[Tipo de activo],Panel[[#This Row],[Tipo de activo]])+SUMIFS(Pasivos[Año anterior],Pasivos[Tipo de pasivo],Panel[[#This Row],[Tipo de activo]])","v":500},{"$f":"SUMIFS(Activos[Año actual],Activos[Tipo de activo],Panel[[#This Row],[Tipo de activo]])+SUMIFS(Pasivos[Año actual],Pasivos[Tipo de pasivo],Panel[[#This Row],[Tipo de activo]])","v":350}]
[null,"Pasivos a largo plazo",{"$f":"SUMIFS(Activos[Año anterior],Activos[Tipo de activo],Panel[[#This Row],[Tipo de activo]])+SUMIFS(Pasivos[Año anterior],Pasivos[Tipo de pasivo],Panel[[#This Row],[Tipo de activo]])","v":0},{"$f":"SUMIFS(Activos[Año actual],Activos[Tipo de activo],Panel[[#This Row],[Tipo de activo]])+SUMIFS(Pasivos[Año actual],Pasivos[Tipo de pasivo],Panel[[#This Row],[Tipo de activo]])","v":0}]
[null,"Capital propio",{"$f":"SUMIFS(Activos[Año anterior],Activos[Tipo de activo],Panel[[#This Row],[Tipo de activo]])+SUMIFS(Pasivos[Año anterior],Pasivos[Tipo de pasivo],Panel[[#This Row],[Tipo de activo]])","v":0},{"$f":"SUMIFS(Activos[Año actual],Activos[Tipo de activo],Panel[[#This Row],[Tipo de activo]])+SUMIFS(Pasivos[Año actual],Pasivos[Tipo de pasivo],Panel[[#This Row],[Tipo de activo]])","v":350}]
[null,"Activos totales",{"$f":"Activos[[#Totals],[Año anterior]]","v":500},{"$f":"Activos[[#Totals],[Año actual]]","v":515}]
[null,"Pasivos totales y capital de los accionistas",{"$f":"Pasivos[[#Totals],[Año anterior]]","v":500},{"$f":"Pasivos[[#Totals],[Año actual]]","v":700}]
[null,"Saldo",{"$f":"C10-C11","v":0},{"$f":"D10-D11","v":{"v":-185,"d":"-185 "}}]

{"sheet":"Activos","index":1,"n_rows":14,"n_cols":5,"rows_kept":14}
[null,"Activos"]
[{"$nulls":3},{"$f":"AF_EJERCICIO","v":"AF-2016"},{"$f":"AF_EJERCICIO_2","v":"AF-2017"}]
[null,"Tipo de activo","Descripción","Año anterior","Año actual"]
[null,"Activos actuales","Efectivo",600,600]
[null,"Activos actuales","Inversiones"]
[null,"Activos actuales","Existencias"]
[null,"Activos actuales","Cuentas por cobrar"]
[null,"Activos actuales","Gastos prepagados"]
[null,"Activo fijos","Propiedad y equipos"]
[null,"Activo fijos","Mejoras de arrendamiento"]
[null,"Activo fijos","Capital y otras inversiones"]
[null,"Activo fijos","Menos depreciación acumulada (valores negativos)",{"v":-100,"d":"-100 "},{"v":-85,"d":"-85 "}]
[null,"Otros activos","Beneficencia"]
[null,"Activos totales",null,{"$f":"SUBTOTAL(109,Activos[Año anterior])","v":500},{"$f":"SUBTOTAL(109,Activos[Año actual])","v":515}]

{"sheet":"Pasivos","index":2,"n_rows":12,"n_cols":5,"rows_kept":12}
[null,"Pasivos"]
[{"$nulls":3},{"$f":"AF_EJERCICIO","v":"AF-2016"},{"$f":"AF_EJERCICIO_2","v":"AF-2017"}]
[null,"Tipo de pasivo","Descripción","Año anterior","Año actual"]
[null,"Pasivos actuales","Cuentas por pagar",null,350]
[null,"Pasivos actuales","Salarios acumulados"]
[null,"Pasivos actuales","Compensación acumulada",500]
[null,"Pasivos actuales","Impuestos sobre la renta por pagar"]
[null,"Pasivos actuales","Ingresos no ganados"]
[null,"Pasivos a largo plazo","Hipoteca por pagar"]
[null,"Capital propio","Capital de inversión",null,350]
[null,"Capital propio","Ganancias retenidas acumuladas"]
[null,"Pasivos totales y capital de los accionistas",null,{"$f":"SUBTOTAL(109,Pasivos[Año anterior])","v":500},{"$f":"SUBTOTAL(109,Pasivos[Año actual])","v":700}]

{"sheet":"Categorías","index":3,"n_rows":9,"n_cols":2,"rows_kept":9}
[null,"Categorías"]
[]
[null,"Categorías"]
[null,"Activos actuales"]
[null,"Activo fijos"]
[null,"Otros activos"]
[null,"Pasivos actuales"]
[null,"Pasivos a largo plazo"]
[null,"Capital propio"]